bitfinex-derivatives/quotes_SOLF0:USTF0_20260116
["timestamp","ask_amount","ask_price","bid_price","bid_amount"]
[1768586985143,6.2851,143.26,143.21,7.8445828]
[1768586985338,10.42693243,143.25,143.21,14.1317828]
[1768586985640,264.0,143.27,143.22,7.8445828]
[1768586985841,10.42638378,143.26,143.22,7.8445828]
[1768586986140,10.42638378,143.25,143.22,7.8445828]
[1768586986440,5.05701155,143.24,143.22,7.8445828]
[1768586986641,272.74485291,143.28,143.22,7.8445828]
[1768586986955,10.42605732,143.27,143.22,7.8445828]
[1768586987242,10.42605732,143.26,143.22,7.8445828]
[1768586987442,5.05685483,143.25,143.22,7.8445828]
[1768586987643,272.74485291,143.28,143.22,7.8445828]
[1768586987844,10.42413982,143.27,143.22,7.8445828]
[1768586988142,10.42413982,143.26,143.22,7.8445828]
[1768586988343,8.74485291,143.28,143.22,7.8445828]
[1768586988344,272.72485291,143.28,143.22,7.8445828]
[1768586988540,10.42206827,143.27,143.22,7.8445828]
[1768586988836,5.05471619,143.26,143.23,7.8445828]
[1768586989044,266.35940451,143.3,143.23,7.8445828]
[1768586989240,7.4341207,143.33,143.26,7.8445828]
[1768586990043,277.6965207,143.33,143.27,7.8445828]
[1768586994155,13.7165207,143.33,143.27,7.8445828]
[1768586994452,263.94,143.33,143.27,7.8445828]
[1768586995151,9.088892,143.35,143.27,7.8445828]
[1768586995450,277.52765009,143.34,143.27,14.1290828]
[1768587000550,7.25979375,143.33,143.27,14.1290828]
[1768587001551,7.24700033,143.3,143.23,7.98023474]
[1768587001752,272.86348099,143.29,143.23,7.98023474]
[1768587002652,272.86348099,143.29,143.24,6.2859]
[1768587003254,272.86348099,143.29,143.23,14.26653474]
[1768587005651,272.86348099,143.29,143.23,6.2863]
[1768587005952,7.18528387,143.28,143.23,6.2863]
[1768587006760,279.08625478,143.29,143.22,7.98023474]
[1768587007052,7.17333963,143.28,143.22,7.98023474]
[1768587007356,8.92245478,143.27,143.19,7.98023474]
[1768587007553,7.17333963,143.26,143.19,7.98023474]
[1768587007856,8.91066476,143.25,143.19,7.98023474]
[1768587008052,263.88,143.24,143.19,7.98023474]
[1768587008254,277.32764961,143.24,143.17,7.98023474]
[1768587008658,13.44764961,143.24,143.17,7.98023474]
[1768587008858,277.32764961,143.24,143.17,7.98023474]
[1768587009464,271.04154961,143.24,143.18,7.98023474]
[1768587010457,271.06154961,143.24,143.18,7.98023474]
[1768587010761,263.9,143.25,143.19,7.98023474]
[1768587011457,279.06095983,143.26,143.19,14.26823474]
[1768587012356,15.16095983,143.26,143.19,14.26823474]
[1768587012557,263.9,143.25,143.19,14.26823474]
[1768587013056,271.00475929,143.25,143.19,7.98023474]
[1768587013356,1.74874936,143.24,143.17,14.26883474]
[1768587013561,1.74874936,143.22,143.17,14.26883474]
[1768587016160,1.74874936,143.24,143.18,14.26873474]
[1768587016461,265.66874936,143.24,143.18,14.26873474]
[1768587020262,7.07221143,143.26,143.2,7.98023474]
[1768587021564,7.07221143,143.26,143.2,14.26773474]
[1768587022060,8.74944424,143.31,143.22,7.31706721]
[1768587022764,8.74944424,143.31,143.24,13.60296721]
[1768587023468,6.99083638,143.3,143.24,13.60296721]
[1768587023864,263.96,143.33,143.21,1.74874936]
[1768587023865,8.73002763,143.27,143.21,7.31706721]
[1768587024769,8.73002763,143.27,143.21,13.60426721]
[1768587032255,6.89945153,143.26,143.19,7.28861512]
[1768587032456,8.64820089,143.25,143.19,7.28861512]
[1768587032971,13.17684287,143.24,143.17,7.28861512]
[1768587033160,14.92559223,143.24,143.17,7.28861512]
[1768587033768,14.92559223,143.24,143.17,13.57741512]
[1768587035973,14.92559223,143.24,143.18,6.2885]
[1768587035974,8.63959223,143.24,143.18,6.2885]
[1768587037474,6.89084287,143.24,143.18,6.2885]
[1768587037674,8.63959223,143.24,143.18,6.2885]
[1768587040978,8.03434936,143.25,143.19,7.28861512]
[1768587041176,14.85985165,143.25,143.19,7.28861512]
[1768587043175,6.82550229,143.25,143.19,13.57671512]
[1768587043374,8.57425165,143.25,143.19,13.57671512]
[1768587046385,6.78766887,143.24,143.19,6.2881]
[1768587046573,6.78766887,143.24,143.17,13.57721512]
[1768587046877,1.74874936,143.23,143.17,13.57721512]
[1768587047286,6.78032308,143.22,143.16,3.0]
[1768587047779,6.78032308,143.22,143.16,10.28861512]
[1768587048985,6.78032308,143.22,143.16,16.57801512]
[1768587049184,6.78032308,143.22,143.16,13.57801512]
[1768587050286,8.03524936,143.23,143.17,13.57761512]
[1768587051287,6.2868,143.22,143.17,7.28861512]
[1768587054987,13.00721892,143.22,143.15,7.83632458]
[1768587055188,1.74874936,143.21,143.15,7.83632458]
[1768587055497,14.75646828,143.21,143.15,7.83632458]
[1768587059591,13.00771892,143.21,143.15,14.12612458]
[1768587060990,1.74874936,143.22,143.16,14.12562458]
[1768587061194,6.6822596,143.23,143.17,7.83632458]
[1768587062084,12.9687596,143.23,143.17,7.83632458]
[1768587062281,6.2865,143.23,143.16,6.2894]
[1768587062488,11.62741302,143.22,143.16,6.2894]
[1768587062691,6.67611158,143.22,143.16,6.2894]
[1768587062990,6.67004652,143.21,143.15,7.83632458]
[1768587064794,12.95734652,143.21,143.15,7.83632458]
[1768587067495,6.64651307,143.2,143.14,6.2901]
[1768587077200,6.64651307,143.2,143.14,14.12642458]
[1768587077810,6.2868,143.22,143.15,7.83632458]
[1768587078298,10.28779816,143.21,143.15,7.83632458]
[1768587078497,6.2873,143.21,143.15,7.83632458]
[1768587080099,6.2877,143.2,143.15,7.83632458]
[1768587080300,12.86500072,143.2,143.15,7.83632458]
[1768587081300,14.61467809,143.2,143.15,7.83632458]
[1768587081599,12.86500072,143.2,143.15,7.83632458]
[1768587082099,6.56251153,143.19,143.13,7.69071146]
[1768587083192,17.7917156,143.18,143.11,13.98231146]
[1768587083393,12.84657508,143.18,143.11,13.98231146]
[1768587083593,12.84657508,143.18,143.12,7.69071146]
[1768587086303,6.5438614,143.17,143.1,7.69071146]
[1768587086496,6.5438614,143.17,143.08,7.69071146]
[1768587086801,6.2902,143.15,143.08,7.69071146]
[1768587087103,6.53932241,143.15,143.08,7.69071146]
[1768587087902,6.2904,143.14,143.08,7.69071146]
[1768587088205,6.53932241,143.15,143.08,7.69071146]
[1768587088893,6.2904,143.14,143.08,7.69071146]
[1768587090799,12.8068106,143.16,143.09,9.37517962]
[1768587092304,12.8068106,143.16,143.09,7.62550225]
[1768587092909,6.5171106,143.16,143.1,7.62550225]
[1768587093307,1.74967737,143.19,143.1,7.62550225]
[1768587093308,6.50876144,143.19,143.1,9.37517962]
[1768587093509,6.50876144,143.17,143.1,9.37517962]
[1768587094007,6.50876144,143.17,143.09,6.2922]
[1768587094008,6.50464417,143.16,143.09,6.2922]
[1768587094204,8.25432154,143.15,143.08,7.62550225]
[1768587094403,6.50464417,143.14,143.06,7.62550225]
[1768587094903,6.50464417,143.14,143.07,7.62550225]
[1768587095104,6.50464417,143.14,143.07,9.37517962]
[1768587095807,6.50464417,143.14,143.08,6.2928]
[1768587098212,6.50464417,143.14,143.08,13.91830225]
[1768587099708,1.74967737,143.16,143.09,7.62550225]
[1768587099709,8.23083427,143.16,143.09,7.62550225]
[1768587100012,97.8162,143.19,143.1,9.37517962]
[1768587100013,6.2894,143.17,143.1,9.37517962]
[1768587100208,12.7705569,143.17,143.1,7.62550225]
[1768587100905,12.7705569,143.17,143.1,13.91760225]
[1768587106116,6.4593974,143.16,143.1,13.91760225]
[1768587106616,12.7488974,143.16,143.1,7.62550225]
[1768587107017,12.7488974,143.16,143.1,13.91750225]
[1768587107316,12.7488974,143.16,143.1,7.62550225]
[1768587110412,6.289,143.18,143.1,7.62550225]
[1768587110613,6.289,143.18,143.1,9.37517962]
[1768587110917,12.73122585,143.18,143.1,9.37517962]
[1768587111303,12.73122585,143.18,143.12,13.70318264]
[1768587115220,12.73122585,143.18,143.13,7.41208264]
[1768587115620,264.14,143.19,143.13,13.70268264]
[1768587115918,6.42462366,143.23,143.14,9.16176001]
[1768587116106,274.40897983,143.22,143.14,9.16176001]
[1768587116309,264.14,143.22,143.14,9.16176001]
[1768587117113,276.84834574,143.22,143.16,6.2893]
[1768587117310,276.84834574,143.22,143.14,9.16176001]
[1768587118922,276.84834574,143.22,143.15,13.70188264]
[1768587119120,6.41537601,143.21,143.15,7.41208264]
[1768587119312,6.41537601,143.19,143.11,7.41208264]
[1768587119815,12.70357601,143.19,143.11,7.41208264]
[1768587120118,12.70357601,143.19,143.13,6.2907]
[1768587120119,6.41537601,143.19,143.13,6.2907]
[1768587127325,6.41537601,143.19,143.11,6.2915]
[1768587127326,6.39229789,143.17,143.11,6.2915]
[1768587128010,6.39229789,143.17,143.11,13.70358264]
[1768587129023,8.14197526,143.17,143.11,13.70358264]
[1768587129219,8.14197526,143.17,143.09,6.2921]
[1768587129220,6.38676408,143.16,143.09,6.2921]
[1768587129815,8.13372447,143.15,143.09,6.2921]
[1768587133423,8.13518854,143.15,143.09,6.2921]
[1768587133624,8.13518854,143.15,143.09,13.70418264]
[1768587134327,1.75114144,143.15,143.1,7.41208264]
[1768587134825,1.75114144,143.19,143.1,7.41208264]
[1768587135031,272.2421921,143.2,143.1,7.41208264]
[1768587135222,4.94427328,143.19,143.1,7.41208264]
[1768587135419,276.77875066,143.2,143.12,7.41208264]
[1768587135725,270.49105066,143.2,143.12,7.41208264]
[1768587136630,6.37105066,143.2,143.12,7.41208264]
[1768587136926,6.37105066,143.2,143.14,13.70238264]
[1768587138123,6.2872,143.22,143.11,1.75114144]
[1768587138124,1.75114144,143.22,143.16,7.41208264]
[1768587138330,10.27484373,143.21,143.16,7.41208264]
[1768587138632,8.11463588,143.22,143.16,7.41208264]
[1768587138831,10.2473549,143.21,143.16,7.41208264]
[1768587139130,6.36102651,143.19,143.11,7.41208264]
[1768587140836,6.36102651,143.19,143.12,13.70308264]
[1768587142634,6.36102651,143.19,143.13,6.2907]
[1768587143434,272.20080852,143.21,143.14,13.24946757]
[1768587143831,10.25305756,143.2,143.14,13.24946757]
[1768587144027,6.34750941,143.2,143.14,13.24946757]
[1768587145332,6.34750941,143.2,143.15,6.2899]
[1768587146037,265.85114144,143.21,143.15,6.2899]
[1768587146836,272.19189524,143.21,143.15,6.2899]
[1768587147433,278.47919524,143.21,143.14,6.95916757]
[1768587147735,6.3407538,143.2,143.14,6.95916757]
[1768587148834,6.3407538,143.2,143.14,13.24946757]
[1768587150338,6.3407538,143.2,143.15,6.2899]
[1768587150534,6.2873,143.21,143.15,13.57534322]
[1768587151232,12.61678872,143.21,143.15,13.57534322]
[1768587152245,6.32948872,143.21,143.15,13.57534322]
[1768587154040,6.32948872,143.21,143.16,6.2893]
[1768587154346,276.68987444,143.23,143.16,13.57474322]
[1768587154547,10.25232656,143.22,143.17,7.28544322]
[1768587154839,270.40347444,143.23,143.17,7.28544322]
[1768587155044,10.25205605,143.22,143.17,7.28544322]
[1768587155246,6.32347444,143.23,143.17,7.28544322]
[1768587155436,10.25184447,143.22,143.17,7.28544322]
[1768587155638,6.32347444,143.23,143.17,7.28544322]
[1768587155842,10.25206966,143.22,143.17,7.28544322]
[1768587156051,6.32347444,143.23,143.17,7.28544322]
[1768587156245,10.25228214,143.22,143.17,7.28544322]
[1768587156447,6.32347444,143.23,143.17,7.28544322]
[1768587156750,10.25164052,143.22,143.17,7.28544322]
[1768587156949,12.60987444,143.23,143.17,7.28544322]
[1768587157152,10.25164052,143.22,143.17,7.28544322]
[1768587157343,12.60987444,143.23,143.17,7.28544322]
[1768587157544,10.25128877,143.22,143.17,7.28544322]
[1768587157751,12.60987444,143.23,143.17,7.28544322]
[1768587157951,10.25128877,143.22,143.17,13.57444322]
[1768587158249,6.31551792,143.22,143.15,9.03658466]
[1768587159844,12.60231792,143.22,143.16,6.2894]
[1768587162757,6.30607273,143.21,143.15,7.28544322]
[1768587163356,6.30607273,143.21,143.15,13.57514322]
[1768587163956,6.2868,143.22,143.16,13.57484322]
[1768587164158,12.59105129,143.22,143.16,13.57484322]
[1768587169756,6.16259131,143.21,143.16,6.2894]
[1768587175964,6.16259131,143.21,143.16,13.44345726]
[1768587178763,6.16259131,143.21,143.16,7.15405726]
[1768587179466,12.44989131,143.21,143.16,7.15405726]
[1768587179762,6.16259131,143.21,143.16,7.15405726]
[1768587180161,6.16259131,143.21,143.15,6.2899]
[1768587180359,5.85299964,143.2,143.15,6.2899]
[1768587180763,5.85299964,143.2,143.15,13.44395726]
[1768587185866,12.00125954,143.22,143.16,7.15405726]
[1768587186069,10.28051066,143.21,143.16,7.15405726]
[1768587186261,12.00125954,143.22,143.16,7.15405726]
[1768587186458,10.28170465,143.21,143.16,7.15405726]
[1768587186668,10.28170465,143.2,143.16,7.15405726]
[1768587186870,12.00125954,143.22,143.16,7.15405726]
[1768587187067,10.28302677,143.21,143.16,7.15405726]
[1768587187268,10.28302677,143.2,143.16,7.15405726]
[1768587187470,12.00125954,143.22,143.16,7.15405726]
[1768587187772,10.28396508,143.21,143.16,7.15405726]
[1768587188072,10.28396508,143.2,143.16,7.15405726]
[1768587188367,8.03844144,143.21,143.16,7.15405726]
[1768587188572,10.28565687,143.2,143.16,7.15405726]
[1768587188766,8.03844144,143.21,143.16,7.15405726]
[1768587188967,10.28565417,143.2,143.16,7.15405726]
[1768587189169,8.03844144,143.21,143.16,7.15405726]
[1768587189365,10.28727351,143.2,143.16,7.15405726]
[1768587189565,8.03844144,143.21,143.16,7.15405726]
[1768587189763,10.28719024,143.2,143.16,7.15405726]
[1768587189968,8.03844144,143.21,143.16,7.15405726]
[1768587190167,10.28719024,143.2,143.16,7.15405726]
[1768587190467,8.03844144,143.21,143.16,7.15405726]
[1768587190668,10.28772186,143.2,143.16,7.15405726]
[1768587190868,8.03844144,143.21,143.16,7.15405726]
[1768587191068,10.28771916,143.2,143.16,7.15405726]
[1768587191268,8.03844144,143.21,143.16,7.15405726]
[1768587191469,10.28789978,143.2,143.16,7.15405726]
[1768587191669,8.03844144,143.21,143.16,7.15405726]
[1768587191869,10.28728136,143.2,143.16,7.15405726]
[1768587192171,8.03844144,143.21,143.16,7.15405726]
[1768587192477,10.28757312,143.2,143.16,7.15405726]
[1768587192679,8.03844144,143.21,143.16,7.15405726]
[1768587192879,10.28757312,143.2,143.16,7.15405726]
[1768587193177,8.03844144,143.21,143.16,7.15405726]
[1768587193379,10.28858192,143.2,143.16,7.15405726]
[1768587193679,13.58226697,143.21,143.16,7.15405726]
[1768587193877,10.28858192,143.2,143.14,6.2903]
[1768587194180,13.58226697,143.21,143.15,7.15405726]
[1768587194481,10.29025804,143.2,143.15,7.15405726]
[1768587194679,15.81415581,143.19,143.13,7.15405726]
[1768587194872,5.52357034,143.19,143.13,7.15405726]
[1768587195669,5.52357034,143.21,143.15,7.15405726]
[1768587195873,10.29292611,143.2,143.15,7.15405726]
[1768587196080,5.52357034,143.21,143.15,7.15405726]
[1768587196276,10.29308706,143.2,143.15,7.15405726]
[1768587196584,5.52357034,143.21,143.15,7.15405726]
[1768587196784,10.29341429,143.2,143.15,7.15405726]
[1768587196986,11.81097034,143.21,143.15,7.15405726]
[1768587197185,10.29332829,143.2,143.15,7.15405726]
[1768587197384,11.81097034,143.21,143.15,7.15405726]
[1768587197686,10.29363337,143.2,143.15,7.15405726]
[1768587197985,11.81097034,143.21,143.15,7.15405726]
[1768587198184,10.29363606,143.2,143.15,7.15405726]
[1768587198388,11.81097034,143.21,143.15,7.15405726]
[1768587198583,10.2936594,143.2,143.15,7.15405726]
[1768587198784,11.81097034,143.21,143.15,7.15405726]
[1768587198984,5.35119153,143.2,143.15,7.15405726]
[1768587199184,11.81097034,143.21,143.15,7.15405726]
[1768587199384,5.35119358,143.2,143.15,7.15405726]
[1768587199584,11.81097034,143.21,143.15,7.15405726]
[1768587199784,5.35119358,143.2,143.15,7.15405726]
[1768587199992,11.81097034,143.21,143.15,7.15405726]
[1768587200290,5.35119358,143.2,143.16,7.15405726]
[1768587200589,6.2874,143.21,143.16,7.15405726]
[1768587200777,5.35140732,143.2,143.16,7.15405726]
[1768587200982,275.77248756,143.23,143.16,13.44345726]
[1768587201282,5.35112878,143.22,143.17,7.15405726]
[1768587201487,5.35112878,143.21,143.17,7.15405726]
[1768587201684,275.77248756,143.23,143.17,7.15405726]
[1768587201889,5.33407919,143.22,143.17,7.15405726]
[1768587202084,5.33407919,143.21,143.17,7.15405726]
[1768587202284,275.77248756,143.23,143.17,7.15405726]
[1768587202485,5.33408467,143.22,143.17,7.15405726]
[1768587202680,5.33408467,143.21,143.15,6.65395118]
[1768587202887,5.35478459,143.22,143.15,6.65395118]
[1768587203095,5.33412327,143.21,143.15,6.65395118]
[1768587203295,5.35478459,143.22,143.15,6.65395118]
[1768587203591,5.3342069,143.21,143.15,6.65395118]
[1768587203792,5.35478459,143.22,143.15,6.65395118]
[1768587203990,5.33417459,143.21,143.15,6.65395118]
[1768587204186,5.06445707,143.2,143.15,6.65395118]
[1768587204389,5.35478459,143.22,143.15,6.65395118]
[1768587204585,10.39864014,143.21,143.15,6.65395118]
[1768587204788,5.06446037,143.2,143.16,6.65395118]
[1768587204988,5.35478459,143.22,143.16,6.65395118]
[1768587205191,10.39864014,143.21,143.16,6.65395118]
[1768587205385,5.06446037,143.2,143.16,6.65395118]
[1768587205585,5.35478459,143.22,143.16,6.65395118]
[1768587205788,10.39861732,143.21,143.16,12.94335118]
[1768587205988,5.06444838,143.2,143.16,12.94335118]
[1768587206191,5.35478459,143.22,143.16,12.94335118]
[1768587206399,10.39857236,143.21,143.16,12.94335118]
[1768587206702,5.06442472,143.2,143.16,12.94335118]
[1768587206998,5.35478459,143.22,143.16,12.94335118]
[1768587207200,10.39857236,143.21,143.16,12.94335118]
[1768587207387,5.06442472,143.2,143.16,12.94335118]
[1768587207590,5.35478459,143.22,143.16,12.94335118]
[1768587207889,10.39851985,143.21,143.16,12.94335118]
[1768587208089,5.06439789,143.2,143.16,12.94335118]
[1768587208295,5.35478459,143.22,143.16,12.94335118]
[1768587208486,10.39845194,143.21,143.16,12.94335118]
[1768587208688,5.06436481,143.2,143.16,12.94335118]
[1768587208894,5.35478459,143.22,143.16,12.94335118]
[1768587209093,10.39845194,143.21,143.16,12.94335118]
[1768587209301,5.06436481,143.2,143.16,12.94335118]
[1768587209499,5.35478459,143.22,143.16,12.94335118]
[1768587209700,10.39841956,143.21,143.16,12.94335118]
[1768587209900,5.06434906,143.2,143.16,12.94335118]
[1768587210089,5.35478459,143.22,143.16,12.94335118]
[1768587210294,10.3984613,143.21,143.16,12.94335118]
[1768587210594,5.06434906,143.2,143.16,12.94335118]
[1768587210899,5.35478459,143.22,143.17,6.53600627]
[1768587211098,10.39826267,143.21,143.17,6.53600627]
[1768587211400,5.0642578,143.2,143.17,6.53600627]
[1768587211589,5.35478459,143.22,143.17,6.53600627]
[1768587211788,10.39769988,143.21,143.17,6.53600627]
[1768587212009,8.387e-05,143.2,143.17,6.53600627]
[1768587212206,264.06,143.23,143.17,6.53600627]
[1768587212406,5.33316748,143.22,143.17,6.53600627]
[1768587212711,264.06,143.23,143.17,6.53600627]
[1768587213005,5.3331701,143.22,143.17,6.53600627]
[1768587213205,264.06,143.23,143.17,6.53600627]
[1768587213406,5.33216653,143.22,143.17,6.53600627]
[1768587213605,277.24673529,143.24,143.17,6.53600627]
[1768587213806,5.33216653,143.23,143.18,6.2885]
[1768587214008,5.33216653,143.22,143.18,6.2885]
[1768587214203,5.13918765,143.22,143.17,6.53600627]
[1768587215106,5.3318126,143.21,143.17,6.53600627]
[1768587215312,5.13918765,143.22,143.17,6.53600627]
[1768587215615,5.3316942,143.21,143.17,6.53600627]
[1768587215909,11.42598765,143.22,143.17,6.53600627]
[1768587216103,5.33169787,143.21,143.17,6.53600627]
[1768587216307,11.42598765,143.22,143.17,6.53600627]
[1768587216502,5.33159909,143.21,143.17,6.53600627]
[1768587216707,11.42598765,143.22,143.17,6.53600627]
[1768587216904,5.33159909,143.21,143.17,6.53600627]
[1768587217215,11.42598765,143.22,143.17,6.53600627]
[1768587217511,5.3318434,143.21,143.17,6.53600627]
[1768587217715,11.42598765,143.22,143.17,6.53600627]
[1768587218008,5.3318434,143.21,143.15,6.2898]
[1768587218211,5.077951,143.21,143.15,12.82580627]
[1768587219215,5.077951,143.21,143.16,6.53600627]
[1768587224719,11.365251,143.21,143.16,6.53600627]
[1768587225017,6.2873,143.21,143.16,6.53600627]
[1768587226619,4.99531864,143.2,143.16,6.53600627]
[1768587226815,6.2873,143.21,143.16,6.53600627]
[1768587227009,10.33124052,143.2,143.16,6.53600627]
[1768587227210,6.2873,143.21,143.16,6.53600627]
[1768587227406,10.3312299,143.2,143.16,6.53600627]
[1768587227610,8.03711613,143.21,143.16,6.53600627]
[1768587227818,4.99531339,143.2,143.16,6.53600627]
[1768587228015,8.03711613,143.21,143.16,6.53600627]
[1768587228216,4.99493945,143.2,143.16,6.53600627]
[1768587228416,8.03711613,143.21,143.16,6.53600627]
[1768587228622,10.33131081,143.2,143.16,6.53600627]
[1768587228815,5.07288454,143.19,143.16,6.53600627]
[1768587229013,8.03711613,143.21,143.16,6.53600627]
[1768587229216,10.40884158,143.2,143.16,6.53600627]
[1768587229419,5.07288454,143.19,143.16,6.53600627]
[1768587229720,6.2878,143.2,143.16,6.53600627]
[1768587230020,5.07293324,143.19,143.16,6.53600627]
[1768587230214,6.2878,143.2,143.16,6.53600627]
[1768587230415,5.07290803,143.19,143.16,6.53600627]
[1768587230621,6.2878,143.2,143.16,6.53600627]
[1768587230921,5.07285719,143.19,143.16,6.53600627]
[1768587231122,6.67328116,143.21,143.16,6.53600627]
[1768587231319,10.40886651,143.2,143.16,6.53600627]
[1768587231622,5.07290803,143.19,143.13,6.2907]
[1768587231918,12.96058116,143.21,143.13,6.2907]
[1768587232120,10.40866525,143.2,143.13,6.2907]
[1768587232312,5.07279796,143.19,143.13,6.2907]
[1768587232514,12.96058116,143.21,143.13,6.2907]
[1768587232714,10.40888498,143.2,143.13,6.2907]
[1768587232914,5.07290771,143.19,143.13,6.2907]
[1768587233115,12.96058116,143.21,143.13,6.2907]
[1768587233318,10.40886641,143.2,143.13,6.2907]
[1768587233521,5.07288914,143.19,143.13,6.2907]
[1768587233720,12.96058116,143.21,143.14,6.36350107]
[1768587233921,10.40888601,143.2,143.14,6.36350107]
[1768587234120,5.07289327,143.19,143.14,6.36350107]
[1768587234321,12.96058116,143.21,143.14,6.36350107]
[1768587234620,10.40896518,143.2,143.14,6.36350107]
[1768587234823,5.07287847,143.19,143.14,6.36350107]
[1768587235019,12.96058116,143.21,143.14,6.36350107]
[1768587235220,17.17779847,143.2,143.14,6.36350107]
[1768587235420,5.07287847,143.19,143.14,6.36350107]
[1768587237922,5.07287847,143.19,143.15,6.36350107]
[1768587241825,6.76883329,143.18,143.11,6.36350107]
[1768587242019,18.92838727,143.17,143.11,6.36350107]
[1768587242223,11.84171176,143.16,143.11,6.36350107]
[1768587242427,6.76883329,143.16,143.11,6.36350107]
[1768587242820,13.05833329,143.16,143.11,6.36350107]
[1768587243728,14.80814942,143.16,143.11,6.36350107]
[1768587244932,8.51864942,143.16,143.11,6.36350107]
[1768587246025,8.51864942,143.14,143.09,6.36350107]
[1768587246233,11.83435263,143.13,143.08,136.35695054]
[1768587246431,6.76883329,143.13,143.08,136.35695054]
[1768587247330,6.76883329,143.13,143.07,6.36350107]
[1768587251433,6.76883329,143.13,143.08,6.36350107]
[1768587251635,8.51864942,143.15,143.08,6.36350107]
[1768587252830,6.76883329,143.14,143.08,12.65710107]
[1768587253223,6.76883329,143.14,143.09,6.36350107]
[1768587254636,6.76883329,143.14,143.09,12.65640107]
[1768587257835,1.75098058,143.15,143.1,6.2927]
[1768587258043,1.75098058,143.15,143.1,12.65620107]
[1768587258740,8.51981387,143.15,143.1,12.65620107]
[1768587259141,8.51981387,143.15,143.1,6.2927]
[1768587260243,8.51981387,143.13,143.08,6.36350107]
[1768587260835,8.51981387,143.13,143.08,12.65700107]
[1768587263943,8.51981387,143.13,143.09,6.2931]
[1768587264841,6.76883329,143.13,143.09,6.2931]
[1768587265445,6.76883329,143.13,143.08,6.36350107]
[1768587266540,1.75098058,143.12,143.08,6.36350107]
[1768587266747,1.75098058,143.12,143.08,12.65710107]
[1768587267246,1.75098058,143.12,143.08,6.2936]
[1768587267549,8.25252823,143.12,143.08,6.2936]
[1768587269348,6.50154765,143.12,143.08,6.2936]
[1768587270346,14.53477119,143.14,143.08,6.2936]
[1768587270548,6.49279061,143.14,143.08,6.2936]
[1768587270746,6.49279061,143.13,143.08,6.2936]
[1768587279361,6.49279061,143.13,143.08,13.23819131]
[1768587285765,6.49279061,143.13,143.08,6.2936]
[1768587286165,5.08325061,143.12,143.08,6.2936]
[1768587286368,6.49279061,143.13,143.08,6.2936]
[1768587286666,5.08325061,143.12,143.08,6.2936]
[1768587286864,6.49279061,143.13,143.08,6.2936]
[1768587287061,5.08325061,143.12,143.08,6.2936]
[1768587287263,6.49279061,143.13,143.08,6.2936]
[1768587287462,5.08432225,143.12,143.08,6.2936]
[1768587287670,6.49279061,143.13,143.08,6.2936]
[1768587287869,1.75098058,143.14,143.07,3.52821177]
[1768587287870,6.49279061,143.11,143.07,3.52821177]
[1768587288258,6.49279061,143.11,143.06,6.94459131]
[1768587289369,6.49279061,143.11,143.06,13.23899131]
[1768587289769,6.49279061,143.11,143.02,99.68318058]
[1768587289770,6.49279061,143.14,143.07,6.94459131]
[1768587289964,10.44506553,143.13,143.07,6.94459131]
[1768587290264,10.44684074,143.12,143.07,6.94459131]
[1768587290469,5.10616958,143.11,143.07,6.94459131]
[1768587290663,8.24377119,143.14,143.07,6.94459131]
[1768587290871,10.44844424,143.13,143.08,6.2935]
[1768587291161,10.44844424,143.12,143.08,6.2935]
[1768587291366,5.1077757,143.11,143.08,6.2935]
[1768587291564,8.24377119,143.14,143.08,6.2935]
[1768587291865,10.44875028,143.13,143.08,6.2935]
[1768587292164,10.44875028,143.12,143.08,6.2935]
[1768587292468,5.10805818,143.11,143.08,6.2935]
[1768587292668,8.24377119,143.14,143.08,6.2935]
[1768587292669,14.53477119,143.14,143.08,6.2935]
[1768587292867,10.44867788,143.13,143.08,6.2935]
[1768587293068,10.44867788,143.12,143.08,6.2935]
[1768587293369,5.10802595,143.11,143.08,6.2935]
[1768587293666,14.53477119,143.14,143.08,6.2935]
[1768587293869,10.44849828,143.13,143.08,6.2935]
[1768587294070,10.44849828,143.12,143.08,6.2935]
[1768587294268,5.10793547,143.11,143.08,6.2935]
[1768587294463,14.53477119,143.14,143.08,6.2935]
[1768587294660,10.44833794,143.13,143.08,6.2935]
[1768587294960,10.44833794,143.12,143.08,6.2935]
[1768587295159,5.10785513,143.11,143.08,6.2935]
[1768587295360,14.53477119,143.14,143.08,6.2935]
[1768587295564,10.44817939,143.13,143.08,6.2935]
[1768587295768,10.44817939,143.12,143.08,6.2935]
[1768587295971,5.10777744,143.11,143.08,6.2935]
[1768587296270,14.53477119,143.14,143.08,6.2935]
[1768587296470,10.44801905,143.13,143.08,6.2935]
[1768587296663,10.44801905,143.12,143.08,6.2935]
[1768587296863,5.10769946,143.11,143.08,6.2935]
[1768587297066,14.53477119,143.14,143.08,6.2935]
[1768587297269,10.44810174,143.13,143.08,6.2935]
[1768587297469,10.44810174,143.12,143.08,6.2935]
[1768587297669,5.10778215,143.11,143.08,6.2935]
[1768587297872,8.24377119,143.14,143.08,6.2935]
[1768587298171,10.44818178,143.13,143.08,6.2935]
[1768587298372,5.10777724,143.12,143.08,6.2935]